Cogmind - Beta 10.2 @@@ ROGUE MODE // 2020.12.16 @ 18:55:41 // Halloween2020/ForbiddenLore Player: WayneKnight Result: Destroyed by as-15263 with Assembled Blade Performance ------------- Evolutions (0) 0 Regions Visited (2) 400 Robots Destroyed (28) 140 Value Destroyed (587) 587 Prototype IDs (2) 40 Alien Tech Used (0) 0 Bonus (0) 0 TOTAL SCORE: 1167 Bonus ------- None Cogmind --------- Core Integrity 0/250 Matter 17/300 Energy 100/100 System Corruption 3% Temperature Cool (0) Movement Walking (210) Ox3 Location -10/Mines Parts ------- > --- POWER (1) -------- (None) > --- PROPULSION (2) --- Aluminum Leg > --- UTILITY (2) ------ Large Storage Unit Large Storage Unit > --- WEAPON (2) ------- Autogun Autogun > --- INVENTORY (16) --- Combat Airjet Combat Airjet Combat Airjet Small Storage Unit Large Storage Unit Assault Rifle Autogun Autogun Mining Laser Makeshift Axe Peak State ------------ > --- POWER ------------ Ion Engine > --- PROPULSION ------- Light Treads Light Treads > --- UTILITY ---------- Large Storage Unit Large Storage Unit > --- WEAPON ----------- Autogun Autogun > --- INVENTORY -------- Light Ion Engine Light Treads Aluminum Leg Aluminum Leg Combat Airjet Small Storage Unit Large Storage Unit Assault Rifle Autogun Autogun Grenade Launcher Mining Laser Makeshift Axe [Rating: 11] Favorites ----------- Power Ion Engine Engine Ion Engine Propulsion Light Treads Treads Light Treads Leg Aluminum Leg Utility Large Storage Unit Storage Large Storage Unit Weapon Autogun Energy Gun EM Pulse Gun Ballistic Gun Autogun Launcher Grenade Launcher Build | -11 -10 -10 ------- Run | Scr Mat Min Slots Evolved . | . . . Power . | . . . Propulsion . | . . . Utility . | . . . Weapon . | . . . Parts Attached 18 | 3 7 8 Power 2 | . 1 1 Engine 2 | . 1 1 Core . | . . . Reactor . | . . . Propulsion 6 | 2 1 3 Treads 4 | 2 1 1 Leg 2 | . . 2 Wheel . | . . . Hover . | . . . Flight . | . . . Utility 3 | 1 2 . Device . | . . . Storage 3 | 1 2 . Processor . | . . . Hackware . | . . . Protection . | . . . Artifact . | . . . Weapon 7 | . 3 4 Energy Gun 1 | . 1 . Energy Cannon . | . . . Ballistic Gun 4 | . 2 2 Ballistic Cannon . | . . . Launcher 2 | . . 2 Special Weapon . | . . . Impact Weapon . | . . . Slashing Weapon . | . . . Piercing Weapon . | . . . Special Melee Weapon . | . . . Unidentified Prototypes . | . . . Parts Lost 8 | . 1 7 Power 2 | . . 2 Propulsion 4 | . . 4 Utility . | . . . Weapon 2 | . 1 1 Highest Loss Streak 7 | . 1 7 Average Slot Usage (%) 99 | . 99 98 Engine 13 | . 14 13 Treads 27 | . 27 25 Storage 28 | . 28 28 Energy Gun 1 | . 2 . Ballistic Gun 26 | . 25 27 Naked Turns . | . . . Heaviest Build 43 | 15 43 43 Greatest Support 40 | 40 40 40 Greatest Overweight (x) 3 | . 1 3 Average Overweight (x) . | . . 1 Largest Inventory Capacity 16 | 8 16 16 Average Capacity 12 | 6 10 16 Most Carried 13 | 6 10 13 Average Carried 9 | 6 8 10 Final Capacity 16 | 8 16 16 Final Carried 10 | 6 10 10 Class Distribution -------------------- 100% | Mutant Dominant Class ---------------- Mutant | -10/Materials Mutant | -10/Mines Resources | -11 -10 -10 ----------- Run | Scr Mat Min Matter Collected 647 | 254 322 71 Remotely . | . . . Salvage Created 873 | 68 557 248 Parts 52 | 1 36 15 Haulers Intercepted 1 | . 1 . Recyclers Shooed . | . . . Parts Field Recycled . | . . . Retrieved Matter . | . . . Parts Self-Destructed . | . . . Prevented . | . . . Kills | -11 -10 -10 ------- Run | Scr Mat Min Combat Hostiles Destroyed 29 | . 10 19 Guns 23 | . 9 14 AOE 6 | . 1 5 Classes Destroyed 9 | 1 6 2 Worker 4 | . 1 3 Hauler 1 | . 1 . Recycler 2 | 1 1 . Operator 1 | . 1 . Watcher 1 | . 1 . Swarmer 9 | . 3 6 Grunt 8 | . 7 1 Demolisher 2 | . . 2 Assembled 10 | . . 10 Best Kill Streak 15 | 1 6 15 Combat Bots Only 12 | . 3 12 Max Kills in Single Turn 3 | 1 3 3 Gunslinging 1 | . . 1 Exploded 1 | . 1 1 Melee . | . . . Uniques/NPCs Destroyed . | . . . Combat | -11 -10 -10 -------- Run | Scr Mat Min Damage Taken 1350 | . 357 993 Core 276 | . 60 216 Absorbed by Shields . | . . . Core Remaining (%) 100 | 100 . . Volleys Fired 83 | 8 41 34 Largest 2 | 2 2 2 Hottest 60 | 60 60 53 Shots Fired 164 | 16 82 66 Gun 156 | 16 82 58 Cannon . | . . . Launcher 8 | . . 8 Special . | . . . Kinetic 135 | 8 69 58 Thermal 5 | . 5 . Explosive 8 | . . 8 Electromagnetic 16 | 8 8 . Robot Hit Streak 11 | 3 8 11 Robot Miss Streak 3 | 3 3 3 Penetration Max . | . . . Secondary Targets 3 | . 1 2 Max Gunslinging Chain 1 | . 1 1 Shots Hit Robots 93 | 8 49 36 Core Hits 59 | 2 20 37 Critical Hits 1 | . . 1 Critical Kills 1 | . . 1 Critical Parts Destroyed . | . . . Melee Attacks . | . . . Impact . | . . . Slashing . | . . . Piercing . | . . . Sneak Attacks . | . . . Combat Hostiles . | . . . Follow-up Attacks . | . . . Damage Inflicted 1898 | 105 735 1058 Guns 1257 | 105 663 489 Cannons . | . . . Explosions 603 | . 69 534 Melee . | . . . Ramming 38 | . 3 35 Kinetic 1090 | 34 567 489 Thermal 102 | . 102 . Explosive 534 | . . 534 Electromagnetic 134 | 71 63 . Impact . | . . . Slashing . | . . . Piercing . | . . . Highest Corruption 3 | . . 3 Average Corruption 3 | . . 3 Corruption Purged . | . . . Overload Shots . | . . . Overflow Damage 9 | . . 9 Projectiles . | . . . Explosions 9 | . . 9 Melee . | . . . Knockbacks . | . . . Impact . | . . . Kinetic . | . . . Secondary . | . . . Self-Inflicted Damage 75 | . 35 40 Shots 3 | . 1 2 Rammed 4 | . 2 2 Targets Rammed 5 | . 2 3 Kicked 1 | . . 1 Crushed . | . . . Highest Temperature 61 | . 61 32 Average Temperature 12 | . 15 9 Received Heat Transfer 267 | . 147 120 Siege Activations . | . . . Robots Corrupted . | . . . Combat Hostiles . | . . . Parts Fried 1 | 1 . . Impact Corruptions . | . . . Robots Melted . | . . . Combat Hostiles . | . . . Parts Melted . | . . . Heat Transferred 75 | . 75 . Parts Sabotaged . | . . . Parts Stolen . | . . . Parts Stripped . | . . . Power Chain Reactions 1 | . 1 . Missiles Intercepted . | . . . Alert | -11 -10 -10 ------- Run | Scr Mat Min Peak Influence 179 | 5 179 130 Initial 3 | . 3 . Average 64 | 2 79 42 Maximum Alert Level . | . . . Low Security (%) 100 | 100 100 100 Level 1 . | . . . Level 2 . | . . . Level 3 . | . . . Level 4 . | . . . Level 5 . | . . . High Security . | . . . Max Security . | . . . Squads Dispatched 1 | . 1 . Investigation . | . . . Extermination . | . . . Reinforcement 1 | . 1 . Assault . | . . . Garrison . | . . . Intercept . | . . . Construction Impeded . | . . . Haulers Reinforced . | . . . Stealth | -11 -10 -10 --------- Run | Scr Mat Min Distress Signals . | . . . Communications Jammed . | . . . Distress Signals . | . . . Times Spotted 43 | . 19 24 Peak Tracking Total 4 | . 3 4 Tactical Retreats 2 | . 1 1 Traps | -11 -10 -10 ------- Run | Scr Mat Min Traps Triggered . | . . . Indirectly . | . . . Trap Hack Attempts . | . . . Triggered . | . . . Disarmed . | . . . Reprogrammed . | . . . Reused . | . . . Traps Extracted . | . . . Installed . | . . . Triggered . | . . . Machines | -11 -10 -10 ---------- Run | Scr Mat Min Machines Disabled 3 | . 3 . Max in Single Turn 1 | . 1 . Machines Sabotaged . | . . . Garrisons Compromised . | . . . Overloaded Fab Kills . | . . . Fab Network Shutdowns . | . . . Hacking | -11 -10 -10 --------- Run | Scr Mat Min Machines Accessed 8 | . 8 . Terminals 6 | . 6 . Fabricators . | . . . Repair Stations 1 | . 1 . Recycling Units 1 | . 1 . Scanalyzers . | . . . Garrison Access . | . . . Total Hacks 25 | . 25 . Successful 18 | . 18 . Failed 6 | . 6 . Catastrophic . | . . . Database Lockouts 1 | . 1 . Manual 16 | . 16 . Terminals 22 | . 22 . Fabricators . | . . . Repair Stations 2 | . 2 . Recycling Units 1 | . 1 . Scanalyzers . | . . . Garrison Access . | . . . Terminal Hacks 7 | . 7 . Robot Analysis 2 | . 2 . Prototype ID Bank 2 | . 2 . Locate Traps 2 | . 2 . Zone Layout 1 | . 1 . Fabricator Hacks . | . . . Repair Station Hacks 2 | . 2 . Scan Component 1 | . 1 . Repair 1 | . 1 . Recycling Unit Hacks 1 | . 1 . Report Inventory 1 | . 1 . Scanalyzer . | . . . Garrison Access Hacks . | . . . Unauthorized Hacks 8 | . 8 . Terminals 8 | . 8 . Track 3 | . 3 . Botnet 5 | . 5 . Fabricators . | . . . Repair Stations . | . . . Recycling Units . | . . . Scanalyzers . | . . . Garrison Access . | . . . Data Cores Recovered 1 | . 1 . Used . | . . . Hacking Detections 6 | . 6 . Full Trace Events . | . . . Feedback Events . | . . . Feedback Blocked . | . . . Robot Schematics Acquired . | . . . Robots Built . | . . . Matter . | . . . Time . | . . . Total Robot Build Rating . | . . . Part Schematics Acquired . | . . . Parts Built . | . . . Matter . | . . . Time . | . . . Total Part Build Rating . | . . . Parts Repaired 1 | . 1 . Time 26 | . 26 . Parts Recycled . | . . . Recycled Matter . | . . . Retrieved Matter . | . . . Retrieved Components . | . . . Parts Scanalyzed . | . . . Part Schematics Acquired . | . . . Parts Damaged . | . . . Bothacking | -11 -10 -10 ------------ Run | Scr Mat Min Used RIF Installer . | . . . Robots Hacked . | . . . Non-combat . | . . . Combat . | . . . Robot Hacks Applied . | . . . Relay Couplers Released . | . . . Robots Rewired . | . . . Allies Hacked . | . . . Hacks Repelled . | . . . Allies | -11 -10 -10 -------- Run | Scr Mat Min Total Allies . | . . . Largest Group . | . . . Highest-Rated Group . | . . . Highest-Rated Ally . | . . . Total Orders . | . . . Ally Attacks . | . . . Total Damage . | . . . Kills . | . . . Allies Corrupted . | . . . Allies Melted . | . . . Intel | -11 -10 -10 ------- Run | Scr Mat Min Robot Analysis Total 2 | . 2 . Derelict Logs Recovered 1 | . . 1 Drone Launches . | . . . Drone Recoveries . | . . . Exploration | -11 -10 -10 ------------- Run | Scr Mat Min Turns Passed 1971 | 61 1267 643 Spaces Moved 977 | 28 654 295 Core . | . . . Treads 943 | 1 654 288 Legs 34 | 27 . 7 Wheels . | . . . Hover . | . . . Flight . | . . . Fastest Speed 120 | 120 160 150 Average Speed 167 | 121 164 179 Slowest Speed 210 | 160 180 210 Overloaded Moves . | . . . Propulsion Burnouts . | . . . Robots Hopped . | . . . Cave-ins Triggered . | . . . Exploration Rate (%) 53 | 3 91 65 Regions Visited 2 Branch Regions 1 Pre-discovered Areas 1 | . . 1 Known Exits Taken . | . . . Unknown Exits Taken 2 | 1 1 . Scrap Searched 1 | . . 1 Spaces Dug . | . . . Terrain Destroyed 53 | . 2 51 Melee . | . . . Projectile . | . . . AOE 53 | . 2 51 Terrain Rammed . | . . . Walls Destroyed . | . . . Machines Disabled . | . . . Actions | -11 -10 -10 --------- Run | Scr Mat Min Total 1164 | 38 776 350 Wait 62 | . 57 5 Move 975 | 27 653 295 Hop . | . . . Pick Up 13 | . 8 5 Fast Attach 3 | 1 2 . Attach 6 | . 1 5 Detach . | . . . Swap 9 | 2 4 3 Drop 8 | . 8 . Fire 83 | 8 41 34 Melee . | . . . Ram . | . . . Kick 1 | . . 1 Crush 4 | . 2 2 Escape Stasis . | . . . Rewire . | . . . Trap . | . . . Miscellaneous . | . . . Route ------- -11/Scrapyard -10/Materials (discovered 4 exits: [*Mat x3] / [*Min]) -10/Mines (discovered 2 exits: [*Mat x2]) History --------- Turn | Location | Event 13 | -11/Scrapyard | Discovered new exit (range 3) 62 | -11/Scrapyard | Entered Materials 99 | -10/Materials | Central database locked down 247 | -10/Materials | Discovered new exit (range 13) 310 | -10/Materials | Build established: Mutant 371 | -10/Materials | Discovered new exit (range 8) 507 | -10/Materials | Repaired Lgt. Treads 657 | -10/Materials | Discovered new exit (range 16) 895 | -10/Materials | Discovered new exit (range 8) 1329 | -10/Materials | Entered Mines 1333 | -10/Mines | Met a Derelict bent on vengeance 1373 | -10/Mines | Discovered new exit (range 7) 1479 | -10/Mines | A weapon hastily lodged in a ceiling crevice suddenly fell to the ground 1512 | -10/Mines | Learned location of Zion (-7) 1777 | -10/Mines | Discovered new exit (range 11) 1864 | -10/Mines | Assembled infested the area 1922 | -10/Mines | Core integrity fell below 50% 1955 | -10/Mines | Destroyed 12 combat bots 1962 | -10/Mines | Core integrity fell below 20% 1972 | -10/Mines | Destroyed by as-15263 with Assembled Blade Last Messages --------------- 01936_ Acquired Cmb. Airjet. 01936_ K-01 Serf collects debris. 01937_ Acquired 1 matter. 01939_ K-01 Serf collects debris. 01940_ The unstable cave ceiling collapses. 01941_ K-01 Serf collects debris. 01941_ Acquired Cmb. Airjet. 01943_ as-15263 sneak attacks. 01943_ K-01 Serf destroyed. 01943_ K-01 Serf collects debris. 01945_ K-01 Serf destroyed. 01947_ Lgt. Treads destroyed. 01949_ The unstable cave ceiling collapses. 01959_ Acquired 4 matter. 01960_ Lgt. Ion Engine destroyed. 01960_ System corrupted by crushing effect (+3). 01963_ Knocked back. 01967_ Acquired 2 matter. 01969_ Kicked as-18482 out of the way. 01969_ Aluminum Leg destroyed. Map ----- +----------------------------------------------------+ | | | | | | | | | | | ???????????????????????????????????????? | | ???????????????????????????????????????? | | ?#?? ??????????????????????????????????? | | ## ?????????????????????????????????? | | # ?????????????????????????????????? | | # ?????????????????????????????????? | | # ?????????????????????????????????? | | # ????????????????????????????????? | | ????????????????????????????????? | | ????????????????????????????????? | | ? ????????????????????????????????? | | ??? ???????????????????????????????? | | ???? #####?????###??????????????????? | | ????# ##### ##?????????????????? | | ?????# # # # # ##????????????????? | | ????## [ # #######??????????? | | ????# *% [ # # #??????????? | | ?????# ! =* # ## ##????#????? | | ??????## %%=a% # ### #????? | | ????????# % a #????? | | ######??# " !! @ #????? | | #??# % """ a ######?????? | | #### ### ###?????????? | | #####??# #???????????? | | ##??????#####???????????? | | ### ###???????????????????????? | | = #?# ##?????????????????????????? | | ##?## ##??????????????????????????? | | < #???####????######?????????????????? | | # ##????????### ##????????????????? | | # ]##??????## #????????????????? | | ######## ! ####????????????????? | | ## ##???????????????????? | | ## ##????????????????????? | | ?# ! ####?????????????????????? | | ?# ## ## #????????????????????????? | | ?## ####### #????????????????????????? | | ??#####??# #????????????????????????? | | ?????????# ####????????????????????????? | | ?????????# #???????????????????????????? | | ???????### #???????????????????????????? | | ???????# #???????????????????????????? | | ???????# ###???????????????????????????? | | ???????# #?????????????????????????????? | | ???????#%#?????????????????????????????? | +----------------------------------------------------+ Best States ------------- Heat Dissipation 25 Energy Generation 10 Energy Capacity 250 Matter Stores 300 Matter Capacity 300 Sight Range 16 Terrain Scan Density 10 Evasion (%) 40 Recoil Reduction 2 Item Schematics ----------------- None Robot Schematics ------------------ None Fabricated ------------ Nothing Alien Tech Used ----------------- None Achievements -------------- None Challenges ------------ None Game ------ Seed LightOpticalLance Manual? 0 Play Time 00:14:23 Cumulative 151.7 hours Start 2020.12.16 @ 18:44:56 End 2020.12.16 @ 18:55:41 Sessions 1 Manual Loads 0 Difficulty Rogue Special Mode Halloween2020/ForbiddenLore Game No. 115 Rogue 115 Adventurer 0 Explorer 0 Win Type - Total 3 Types 3/0/0/0/0/0/0/0/0 Lore% 44 Gallery% 57 Achievement% 44 Wizard Run 0 Options --------- ASCII 1 Keyboard 1 Movement Arrows Keybinds 0 Fullscreen 1 Font 24/Proggy Map View 76x50 Tactical HUD 1 Map Filters NONE Filters NONE Steam 1 RUN: 4e504175-8375-4c0a-b4d6-fe2139280218